Workbook

Sheet الربح والخسارة
B1: السيناريو | C1: الحالة الأسوأ
G3: توقعات
B4: ريال سعودي (بالمليون) | C4: 2020 | D4: 2021 | E4: 2022 | G4: 2023 | H4: 2024 | I4: 2025 | J4: 2026 | K4: 2027
B5: الإيرادات | C5: 2,922 | D5: 2,984 | E5: 3,040 | G5: 3,070 | H5: 3,101 | I5: 3,132 | J5: 3,163 | K5: 3,195
B6: تكلفة البضائع المباعة | C6: -1,401 | D6: -1,383 | E6: -1,367 | G6: -1,443 | H6: -1,458 | I6: -1,472 | J6: -1,487 | K6: -1,502
B7: الربح الإجمالي | C7: =SUM(C5:C6) -> 1,521 | D7: 1,601 | E7: 1,673 | G7: =SUM(G5:G6) -> 1,627 | H7: 1,643 | I7: 1,660 | J7: 1,676 | K7: 1,693
B8: النفقات التشغيلية | C8: -1,212 | D8: -1,245 | E8: -1,068 | G8: -1,259 | H8: -1,271 | I8: -1,284 | J8: -1,297 | K8: -1,310
B9: إيرادات قبل الفائدة، والضرائب، والاستهلاك، والاطفاء | C9: =SUM(C7:C8) -> 309 | D9: 356 | E9: 605 | G9: =SUM(G7:G8) -> 368 | H9: 372 | I9: 376 | J9: 379 | K9: 383
B10: الاستهلاك والاطفاء | C10: -31 | D10: -44 | E10: -41 | G10: -44 | H10: -45 | I10: -46 | J10: -47 | K10: -47
B11: إيرادات قبل الفائدة والضرائب | C11: =SUM(C9:C10) -> 278 | D11: 312 | E11: 564 | G11: =SUM(G9:G10) -> 324 | H11: 327 | I11: 330 | J11: 332 | K11: 336
B12: نفقات الفائدة | C12: -50 | D12: -67 | E12: -55 | G12: -59 | H12: -55 | I12: -51 | J12: -47 | K12: -41
B13: الربح قبل الضرائب | C13: =SUM(C11:C12) -> 228 | D13: 245 | E13: 509 | G13: =SUM(G11:G12) -> 265 | H13: 272 | I13: 279 | J13: 285 | K13: 295
B14: الضرائب | C14: -208 | D14: -210 | E14: -209 | G14: -93 | H14: -95 | I14: -98 | J14: -100 | K14: -103
B15: الدخل الصافي | C15: =SUM(C13:C14) -> 20 | D15: 35 | E15: 300 | G15: =SUM(G13:G14) -> 172 | H15: 177 | I15: 181 | J15: 185 | K15: 192
B17: نسبة نمو الإيرادات
B18: الحالة المختارة | G18: =VLOOKUP($C$1,$B19:$K21,COLUMNS($B19:G23),FALSE) -> 1% | H18: 1% | I18: 1% | J18: 1% | K18: 1%
B19: الحالة الأمثل | G19: 3% | H19: 3% | I19: 3% | J19: 3% | K19: 3%
B20: الحالة الأساسية | G20: 2% | H20: 2% | I20: 2% | J20: 2% | K20: 2%
B21: الحالة الأسوأ | G21: 1% | H21: 1% | I21: 1% | J21: 1% | K21: 1%
B23: تكلفة البضائع المباعة كنسبة من الإيرادات
B24: الحالة المختارة | C24: =C6/C5 -> -48% | D24: -46% | E24: -45% | G24: =VLOOKUP($C$1,$B25:$K27,COLUMNS($B25:G29),FALSE) -> -47% | H24: -47% | I24: -47% | J24: -47% | K24: -47%
B25: الحالة الأمثل | C25: -48% | D25: -46% | E25: -45% | G25: -45% | H25: -45% | I25: -45% | J25: -45% | K25: -45%
B26: الحالة الأساسية | C26: -48% | D26: -46% | E26: -45% | G26: -46% | H26: -46% | I26: -46% | J26: -46% | K26: -46%
B27: الحالة الأسوأ | C27: -48% | D27: -46% | E27: -45% | G27: -47% | H27: -47% | I27: -47% | J27: -47% | K27: -47%
B29: النفقات التشغيلية كنسبة من الإيرادات
B30: الحالة المختارة | C30: =C8/C5 -> -41% | D30: -42% | E30: -35% | G30: =VLOOKUP($C$1,$B31:$K33,COLUMNS($B31:G33),FALSE) -> -41% | H30: -41% | I30: -41% | J30: -41% | K30: -41%
B31: الحالة الأمثل | C31: -41% | D31: -42% | E31: -35% | G31: -35% | H31: -35% | I31: -35% | J31: -35% | K31: -35%
B32: الحالة الأساسية | C32: -41% | D32: -42% | E32: -35% | G32: -39% | H32: -39% | I32: -39% | J32: -39% | K32: -39%
B33: الحالة الأسوأ | C33: -41% | D33: -42% | E33: -35% | G33: -41% | H33: -41% | I33: -41% | J33: -41% | K33: -41%
B35: الضرائب | G35: 22.5% | H35: 22.5% | I35: 22.5% | J35: 22.5% | K35: 22.5%

Sheet الميزانية العمومية
B1: الميزانية العمومية
F3: توقعات
B4: ريال سعودي (بالمليون) | C4: 2020-12-31 | D4: 2021-12-31 | E4: 2022-12-31 | F4: 2023-12-31 | G4: 2024-12-31 | H4: 2025-12-31 | I4: 2026-12-31 | J4: 2027-12-31
B5: المديونات التجارية | C5: 143.9 | D5: 154.8 | E5: 169.3 | F5: 160.5 | G5: 162.1 | H5: 163.7 | I5: 165.4 | J5: 167.00
B6: المخزون | C6: 85 | D6: 92 | E6: 110 | F6: 99.9 | G6: 100.9 | H6: 101.9 | I6: 102.9 | J6: 103.90
B7: الأصول الثابتة والمعدات | C7: 632.5 | D7: 632.5 | E7: 659.5 | F7: 673.6 | G7: 684.3 | H7: 694.3 | I7: 703.7 | J7: 712.40
B8: النقد | C8: 24.8 | D8: 21.8 | E8: 220 | F8: 360.8 | G8: 406.6 | H8: 451.7 | I8: 495.8 | J8: 538.60
B9: أصول أخرى | C9: 45.9 | D9: 46.9 | E9: 68 | F9: 55.1 | G9: 55.6 | H9: 56.2 | I9: 56.7 | J9: 57.30
B10: الأصول | C10: =SUM(C5:C9) -> 932.1 | D10: 948 | E10: 1226.8 | F10: 1349.9 | G10: 1409.5 | H10: 1467.8 | I10: 1524.5 | J10: 1579.20
B12: الديون التجارية | C12: 68 | D12: 68.9 | E12: 68.9 | F12: 71.6 | G12: 72.3 | H12: 73 | I12: 73.7 | J12: 74.50
B13: الاحتياطيات | C13: 32.5 | D13: 28.7 | E13: 28.7 | F13: 28.7 | G13: 28.7 | H13: 28.7 | I13: 28.7 | J13: 28.70
B14: الالتزامات المالية | C14: 615.8 | D14: 610.4 | E14: 605 | F14: 616.1 | G14: 568.8 | H14: 517.2 | I14: 461 | J14: 399.70
B15: الالتزامات الأخرى | C15: 48.3 | D15: 43.3 | E15: 38.9 | F15: 44.9 | G15: 45.3 | H15: 45.8 | I15: 46.2 | J15: 46.70
B16: حقوق الملكية | C16: 167.5 | D16: 196.7 | E16: 485.3 | F16: 588.6 | G16: 694.4 | H16: 803.1 | I16: 914.8 | J16: 1029.70
B17: الالتزامات وحقوق الملكية | C17: =SUM(C12:C16) -> 932.1 | D17: 948 | E17: 1226.8 | F17: 1349.9 | G17: 1409.5 | H17: 1467.8 | I17: 1524.4 | J17: 1579.30
B20: أيام مبيعات الحسابات المدينة (DSO) | C20: =C5/'الربح والخسارة'!C5*360 -> 17.7 | D20: =D5/'الربح والخسارة'!D5*360 -> 18.7 | E20: =E5/'الربح والخسارة'!E5*360 -> 20.0 | F20: =AVERAGE(C20:E20) -> 18.8 | G20: =AVERAGE(C20:E20) -> 18.8 | H20: =AVERAGE(C20:E20) -> 18.8 | I20: =AVERAGE(C20:E20) -> 18.8 | J20: =AVERAGE(C20:E20) -> 18.8
B21: أيام مخزون البضائع (DIO) | C21: =-C6/'الربح والخسارة'!C6*360 -> 21.8 | D21: =-D6/'الربح والخسارة'!D6*360 -> 23.9 | E21: =-E6/'الربح والخسارة'!E6*360 -> 29.0 | F21: 24.9 | G21: 24.9 | H21: 24.9 | I21: 24.9 | J21: 24.9
B22: أيام الحسابات الدائنة (DPO) | C22: =-C12/'الربح والخسارة'!C6*360 -> 17.5 | D22: =-D12/'الربح والخسارة'!D6*360 -> 17.9 | E22: =-E12/'الربح والخسارة'!E6*360 -> 18.1 | F22: 17.9 | G22: 17.9 | H22: 17.9 | I22: 17.9 | J22: 17.9
B23: نسبة الأصول الأخرى % | C23: =C9/'الربح والخسارة'!C5 -> 1.6% | D23: =D9/'الربح والخسارة'!D5 -> 1.6% | E23: =E9/'الربح والخسارة'!E5 -> 2.2% | F23: 1.8% | G23: 1.8% | H23: 1.8% | I23: 1.8% | J23: 1.8%
B24: نسبة الالتزامات الأخرى % | C24: =C15/'الربح والخسارة'!C5 -> 1.65% | D24: =D15/'الربح والخسارة'!D5 -> 1.45% | E24: =E15/'الربح والخسارة'!E5 -> 1.28% | F24: 1.46% | G24: 1.46% | H24: 1.46% | I24: 1.46% | J24: 1.46%
B26: Check | C26: =C10-C17 -> 0 | D26: 0 | E26: 0 | F26: 0 | G26: 0 | H26: 0 | I26: 0 | J26: -0

Sheet التدفق النقدي
B1: التدفق النقدي
C3: توقعات
B4: ريال سعودي (بالمليون) | C4: 2023.0 | D4: 2024.0 | E4: 2025.0 | F4: 2026.0 | G4: 2027.0
B5: إيرادات قبل الفائدة، والضرائب، والاستهلاك، والاطفاء | C5: ='الربح والخسارة'!G9 -> 368.0 | D5: ='الربح والخسارة'!H9 -> 372.0 | E5: ='الربح والخسارة'!I9 -> 376.0 | F5: ='الربح والخسارة'!J9 -> 379.0 | G5: ='الربح والخسارة'!K9 -> 383.0
B6: نفقات الفائدة | C6: ='الربح والخسارة'!G12 -> -59.0 | D6: ='الربح والخسارة'!H12 -> -55.0 | E6: ='الربح والخسارة'!I12 -> -51.0 | F6: ='الربح والخسارة'!J12 -> -47.0 | G6: ='الربح والخسارة'!K12 -> -41.0
B7: الضرائب | C7: ='الربح والخسارة'!G14 -> -93.0 | D7: ='الربح والخسارة'!H14 -> -95.0 | E7: ='الربح والخسارة'!I14 -> -98.0 | F7: ='الربح والخسارة'!J14 -> -100.0 | G7: ='الربح والخسارة'!K14 -> -103.0
B8: التغيير في الحسابات التجارية المستحقة | C8: =-('الميزانية العمومية'!F5-'الميزانية العمومية'!E5) -> 8.8 | D8: =-('الميزانية العمومية'!G5-'الميزانية العمومية'!F5) -> -1.6 | E8: =-('الميزانية العمومية'!H5-'الميزانية العمومية'!G5) -> -1.6 | F8: =-('الميزانية العمومية'!I5-'الميزانية العمومية'!H5) -> -1.7 | G8: =-('الميزانية العمومية'!J5-'الميزانية العمومية'!I5) -> -1.6
B9: التغيير في المخزون | C9: =-('الميزانية العمومية'!F6-'الميزانية العمومية'!E6) -> 10.1 | D9: =-('الميزانية العمومية'!G6-'الميزانية العمومية'!F6) -> -1.0 | E9: =-('الميزانية العمومية'!H6-'الميزانية العمومية'!G6) -> -1.0 | F9: =-('الميزانية العمومية'!I6-'الميزانية العمومية'!H6) -> -1.0 | G9: =-('الميزانية العمومية'!J6-'الميزانية العمومية'!I6) -> -1.0
B10: التغيير في الديون التجارية | C10: ='الميزانية العمومية'!F12-'الميزانية العمومية'!E12 -> 2.7 | D10: ='الميزانية العمومية'!G12-'الميزانية العمومية'!F12 -> 0.7 | E10: ='الميزانية العمومية'!H12-'الميزانية العمومية'!G12 -> 0.7 | F10: ='الميزانية العمومية'!I12-'الميزانية العمومية'!H12 -> 0.7 | G10: ='الميزانية العمومية'!J12-'الميزانية العمومية'!I12 -> 0.8
B11: التغيير في الأصول الأخرى | C11: =-('الميزانية العمومية'!F9-'الميزانية العمومية'!E9) -> 12.9 | D11: =-('الميزانية العمومية'!G9-'الميزانية العمومية'!F9) -> -0.5 | E11: =-('الميزانية العمومية'!H9-'الميزانية العمومية'!G9) -> -0.6 | F11: =-('الميزانية العمومية'!I9-'الميزانية العمومية'!H9) -> -0.5 | G11: =-('الميزانية العمومية'!J9-'الميزانية العمومية'!I9) -> -0.6
B12: التغيير في الالتزامات الأخرى | C12: ='الميزانية العمومية'!F15-'الميزانية العمومية'!E15 -> 6.0 | D12: ='الميزانية العمومية'!G15-'الميزانية العمومية'!F15 -> 0.4 | E12: ='الميزانية العمومية'!H15-'الميزانية العمومية'!G15 -> 0.5 | F12: ='الميزانية العمومية'!I15-'الميزانية العمومية'!H15 -> 0.4 | G12: ='الميزانية العمومية'!J15-'الميزانية العمومية'!I15 -> 0.5
B13: التكاليف الرأسمالية | C13: -58.0 | D13: -56.0 | E13: -56.0 | F13: -56.0 | G13: -56.0
B14: تدفق النقد التشغيلي | C14: =SUM(C5:C13) -> 198.5 | D14: 164.0 | E14: 169.0 | F14: 173.9 | G14: 181.1
B15: الأرباح | C15: -69.0 | D15: -71.0 | E15: -72.0 | F15: -74.0 | G15: -77.0
B16: التغيير في الالتزامات المالية | C16: ='الميزانية العمومية'!F14-'الميزانية العمومية'!E14 -> 11.1 | D16: ='الميزانية العمومية'!G14-'الميزانية العمومية'!F14 -> -47.3 | E16: ='الميزانية العمومية'!H14-'الميزانية العمومية'!G14 -> -51.6 | F16: ='الميزانية العمومية'!I14-'الميزانية العمومية'!H14 -> -56.2 | G16: ='الميزانية العمومية'!J14-'الميزانية العمومية'!I14 -> -61.3
B17: التغيير في الاحتياطيات | C17: - | D17: - | E17: - | F17: - | G17: -
B18: التغيير في حقوق الملكية | C18: - | D18: - | E18: - | F18: - | G18: 0.0
B19: تدفق النقد الصافي | C19: =SUM(C14:C16) -> 140.6 | D19: 45.7 | E19: 45.4 | F19: 43.7 | G19: 42.8
